bitfinex-derivatives/quotes_ETHF0:USTF0_20250103
["timestamp","ask_amount","ask_price","bid_price","bid_amount"]
[1735874826030,2.2598178,3462.7,3462.6,0.28907]
[1735874826731,2.2598178,3462.7,3462.5,0.28907]
[1735874827536,2.2598178,3462.6,3462.5,0.28907]
[1735874827728,3.26203767,3462.6,3462.0,5.65219354]
[1735874827936,0.28908,3462.5,3462.2,0.2891]
[1735874828232,1.00221987,3462.4,3462.3,0.28909]
[1735874828434,1.00221987,3462.4,3462.0,4.53219354]
[1735874828639,1.29132987,3462.2,3462.0,4.53219354]
[1735874829140,1.29132987,3462.2,3461.9,0.28912]
[1735874829335,40.8,3462.1,3461.9,0.28913]
[1735874829637,40.8,3462.1,3461.7,5.53441341]
[1735874829833,40.8,3462.1,3461.9,0.28912]
[1735874830034,41.08912,3462.1,3461.8,0.28913]
[1735874830333,41.08912,3462.1,3461.9,0.28913]
[1735874830537,2.2598178,3462.0,3461.5,4.3278]
[1735874830727,0.28913,3461.9,3461.5,4.21001987]
[1735874831132,0.28913,3461.9,3461.7,0.28914]
[1735874831734,3.26203767,3462.0,3461.5,4.21001987]
[1735874831933,3.26203767,3462.0,3461.4,4.82136354]
[1735874831934,1.29137987,3461.6,3461.4,4.82136354]
[1735874832431,1.29137987,3461.6,3461.1,10.06660696]
[1735874832432,0.28918,3461.3,3461.1,5.82360341]
[1735874832630,1.29139987,3461.4,3461.2,0.28919]
[1735874832832,0.28918,3461.3,3461.1,4.82138354]
[1735874833230,1.29138987,3461.4,3461.1,4.82138354]
[1735874833539,2.25781874,3461.2,3461.1,0.28919]
[1735874834638,3.26003861,3461.2,3461.0,0.2892]
[1735874835040,3.26003861,3461.2,3460.9,1.00221987]
[1735874835236,3.26003861,3461.2,3461.0,0.2892]
[1735874835928,2.25781874,3461.2,3461.0,0.2892]
[1735874837138,2.25781874,3461.2,3461.1,1.00221987]
[1735874837341,2.25781874,3461.3,3461.2,0.28919]
[1735874837538,2.25781874,3461.3,3461.2,1.29140987]
[1735874838842,2.25781874,3461.6,3461.5,0.28916]
[1735874839033,2.25781874,3461.6,3461.5,1.29137987]
[1735874839935,0.2891,3462.3,3461.9,0.28913]
[1735874839936,2.25781874,3462.0,3461.9,0.28913]
[1735874840137,2.25781874,3462.0,3461.9,1.29134987]
[1735874840442,2.25781874,3462.0,3461.9,0.28913]
[1735874840635,2.25781874,3462.0,3461.6,2.2804351]
[1735874840836,2.25781874,3462.0,3461.9,0.28913]
[1735874841743,2.25781874,3462.3,3462.1,0.28911]
[1735874843447,2.25781874,3462.3,3461.6,2.2804351]
[1735874843646,2.25781874,3462.3,3462.2,0.2891]
[1735874845843,2.25781874,3462.5,3462.4,0.28909]
[1735874847452,5.46561874,3462.6,3462.5,0.28908]
[1735874848844,3.2078,3462.6,3462.5,0.28908]
[1735874852955,3.49687,3462.6,3462.3,0.28909]
[1735874853553,40.8,3462.5,3462.3,0.28909]
[1735874854958,40.8,3462.5,3462.4,0.28909]
[1735874855853,40.8,3462.5,3462.1,1.12]
[1735874856159,40.8,3462.5,3462.3,0.28909]
[1735874857262,5.75468874,3462.6,3462.3,0.28909]
[1735874857451,0.28908,3462.5,3462.2,0.2891]
[1735874858354,0.28908,3462.5,3462.3,0.28909]
[1735874859659,0.28908,3462.5,3462.2,0.2891]
[1735874860756,0.28908,3462.5,3462.3,0.28909]
[1735874861863,47.55702807,3462.6,3462.3,0.28909]
[1735874862161,2.25781874,3462.5,3462.3,0.28909]
[1735874862551,2.25781874,3462.5,3462.1,2.12233933]
[1735874862552,2.25781874,3462.5,3462.4,0.28909]
[1735874863358,2.25781874,3462.5,3462.3,0.28909]
[1735874863760,2.25781874,3462.5,3462.1,2.12233933]
[1735874863953,2.25781874,3462.5,3462.4,0.28909]
[1735874865865,48.68079183,3462.6,3462.4,0.28909]
[1735874865866,47.55702807,3462.6,3462.4,0.28909]
[1735874867466,0.28908,3462.5,3462.2,0.2891]
[1735874867964,0.28908,3462.5,3462.3,0.28909]
[1735874868167,47.55703807,3462.6,3462.3,0.28909]
[1735874868365,2.25781874,3462.5,3462.3,0.28909]
[1735874868668,2.54689874,3462.5,3462.3,0.28909]
[1735874868862,2.54689874,3462.5,3462.2,0.2891]
[1735874869458,2.54689874,3462.5,3462.1,1.12]
[1735874869665,2.54689874,3462.5,3462.3,0.28909]
[1735874872275,2.25781874,3462.5,3462.3,0.28909]
[1735874874973,2.25781874,3462.5,3462.4,0.28909]
[1735874877980,5.75468874,3462.6,3462.4,0.28909]
[1735874880084,5.75468874,3462.6,3462.1,1.12]
[1735874880283,3.54923807,3462.5,3462.2,0.2891]
[1735874880479,1.00233933,3462.3,3461.8,7.73999354]
[1735874880683,1.00233933,3462.0,3461.8,7.73999354]
[1735874880878,0.28913,3461.9,3461.8,7.73999354]
[1735874881080,1.29145933,3462.0,3461.8,7.73999354]
[1735874882074,43.05781874,3461.9,3461.8,3.2078]
[1735874882475,43.05781874,3461.9,3461.8,3.49694]
[1735874883087,44.1815825,3461.9,3461.8,3.49694]
[1735874883686,44.1815825,3461.9,3461.8,3.2078]
[1735874883986,40.8,3461.9,3461.8,3.2078]
[1735874885889,5.80888118,3462.0,3461.8,3.49694]
[1735874886083,5.80888118,3462.0,3461.8,0.28914]
[1735874886389,46.60888118,3462.0,3461.7,0.28914]
[1735874887689,0.28913,3461.9,3461.6,0.28915]
[1735874887881,1.29147933,3461.8,3461.5,0.28916]
[1735874888083,1.00233933,3461.6,3461.5,0.28916]
[1735874888488,1.00233933,3461.6,3461.4,7.73999354]
[1735874888489,0.28916,3461.5,3461.4,4.53219354]
[1735874888790,1.00233933,3461.6,3461.4,4.53219354]
[1735874889491,1.29148933,3461.6,3461.4,4.53219354]
[1735874889891,1.00233933,3461.6,3461.4,4.53219354]
[1735874890094,5.51976118,3461.6,3461.0,5.53453287]
[1735874890297,5.51976118,3461.6,3461.3,0.28917]
[1735874890898,5.51976118,3461.6,3461.0,5.53453287]
[1735874890899,1.29150933,3461.4,3461.1,0.28919]
[1735874891086,1.00233933,3461.4,3461.0,5.53453287]
[1735874891399,3.39139194,3461.5,3461.3,0.28918]
[1735874892490,2.26038841,3461.4,3461.3,0.28918]
[1735874893996,2.26038841,3461.4,3461.0,1.00233933]
[1735874894292,2.26038841,3461.4,3461.2,0.28918]
[1735874894497,2.26038841,3461.4,3461.3,0.28918]
[1735874897098,4.68289127,3461.6,3461.3,0.28918]
[1735874897099,2.26038841,3461.5,3461.3,0.28918]
[1735874899697,2.26038841,3461.5,3461.2,1.00233933]
[1735874899901,2.54954841,3461.5,3461.2,1.29151933]
[1735874900100,2.54954841,3461.5,3461.2,0.28918]
[1735874900301,2.26038841,3461.5,3461.3,0.28918]
[1735874904705,2.26038841,3461.5,3461.0,1.00233933]
[1735874904906,2.26038841,3461.5,3461.4,0.28917]
[1735874906103,3.26272774,3461.6,3461.4,0.28917]
[1735874906502,3.55188774,3461.6,3461.3,0.28917]
[1735874907206,2.26038841,3461.5,3461.4,0.28917]
[1735874907604,2.26038841,3461.5,3461.3,0.28917]
[1735874911713,2.26038841,3461.5,3461.3,0.28918]
[1735874913402,2.54955841,3461.5,3461.2,0.28918]
[1735874913611,2.54955841,3461.5,3461.0,1.00233933]
[1735874913809,2.26038841,3461.5,3461.3,0.28917]
[1735874914518,2.26038841,3461.5,3461.4,0.28917]
[1735874916416,2.26038841,3461.5,3461.2,1.00233933]
[1735874916611,2.54955841,3461.5,3461.2,0.28918]
[1735874916914,2.54955841,3461.5,3461.3,0.28918]
[1735874917415,0.28918,3461.4,3461.1,0.28919]
[1735874917612,1.29151933,3461.4,3461.1,0.28919]
[1735874917811,3.26272774,3461.4,3461.2,0.28919]
[1735874918213,2.26038841,3461.4,3461.1,1.00233933]
[1735874918406,2.26038841,3461.4,3461.3,0.28918]
[1735874922418,3.39139194,3461.5,3461.3,0.28918]
[1735874923815,3.39139194,3461.5,3461.1,1.00233933]
[1735874924017,3.39139194,3461.5,3461.4,0.28917]
[1735874925416,4.51742185,3461.5,3461.4,0.28917]
[1735874926718,0.28916,3461.6,3461.4,0.28917]
[1735874926719,5.92886032,3461.6,3461.4,0.28917]
[1735874929121,5.92886032,3461.6,3461.5,0.28916]
[1735874930521,5.63970032,3461.6,3461.5,0.28916]
[1735874931119,4.49928933,3461.7,3461.5,0.28916]
[1735874931417,4.49928933,3461.7,3461.1,5.53453287]
[1735874931617,4.49928933,3461.7,3461.6,0.28915]
[1735874932623,4.21013933,3461.7,3461.1,5.53453287]
[1735874932925,0.28916,3461.6,3461.5,0.28916]
[1735874935627,4.21013933,3461.7,3461.1,4.53219354]
[1735874935826,0.28915,3461.6,3461.5,0.28916]
[1735874936533,4.21013933,3461.7,3461.1,4.53219354]
[1735874936725,0.28917,3461.5,3461.4,0.28916]
[1735874937124,4.21013933,3461.7,3461.0,4.53219354]
[1735874937327,0.28915,3461.6,3461.4,0.28916]
[1735874938030,0.28917,3461.4,3461.3,0.28918]
[1735874938228,1.29150933,3461.5,3461.4,0.28917]
[1735874940932,0.28917,3461.4,3461.3,0.28917]
[1735874942137,0.28917,3461.4,3461.0,4.53219354]
[1735874942339,1.00233933,3461.5,3461.0,4.53219354]
[1735874942534,1.00233933,3461.1,3461.0,4.82139354]
[1735874942740,1.29152933,3461.1,3461.0,4.53219354]
[1735874943836,1.29152933,3461.1,3460.9,7.08750031]
[1735874943837,1.29152933,3461.1,3460.9,0.28921]
[1735874944034,1.00233933,3461.1,3460.8,4.53219354]
[1735874944232,1.00233933,3461.1,3461.0,0.2892]
[1735874945132,1.00233933,3461.1,3460.8,4.53219354]
[1735874945332,1.00233933,3461.1,3460.9,0.28921]
[1735874946535,4.53346948,3461.0,3460.9,0.28921]
[1735874950946,4.53346948,3461.1,3461.0,0.2892]
[1735874972954,4.53346948,3461.1,3460.9,4.53219354]
[1735874973360,40.8,3461.0,3460.9,4.82140354]
[1735874974665,45.33346948,3461.0,3460.9,0.28921]
[1735874974865,4.53346948,3461.0,3460.9,0.28921]
[1735874977962,4.53346948,3461.0,3460.8,5.82375287]
[1735874978864,4.53346948,3461.0,3460.8,4.82141354]
[1735874979969,4.53346948,3460.9,3460.8,4.82141354]
[1735874985679,4.53346948,3460.9,3460.8,5.39535347]
[1735874989277,4.53346948,3460.9,3460.8,9.94994021]
[1735874989981,4.53346948,3460.9,3460.8,9.66072021]
[1735874990281,4.53346948,3460.9,3460.8,5.39535347]
[1735874991483,4.53346948,3460.9,3460.8,0.28922]
[1735874993081,4.53346948,3460.9,3460.8,4.84390219]
[1735874998381,4.53346948,3460.9,3460.8,5.39577925]
[1735875000591,4.53346948,3460.9,3460.8,6.39811858]
[1735875000890,4.53346948,3460.9,3460.8,5.8461782]
[1735875002096,4.53346948,3460.9,3460.8,1.29155933]
[1735875002982,4.53346948,3461.0,3460.9,0.28921]
[1735875004190,4.53346948,3461.0,3460.9,4.84368579]
[1735875007793,5.66857321,3461.2,3461.1,0.28919]
[1735875013584,6.67091254,3461.2,3461.0,4.55447579]
[1735875013783,6.67091254,3461.2,3461.1,0.28919]
[1735875017295,1.00233933,3461.2,3461.1,0.28919]
[1735875018299,1.00233933,3461.2,3461.0,0.2892]
[1735875018300,1.29152933,3461.2,3461.0,0.2892]
[1735875018492,1.00233933,3461.2,3461.0,0.2892]
[1735875019291,1.00233933,3461.2,3460.9,4.55447579]
[1735875019499,5.66822394,3461.1,3460.8,4.55447579]
[1735875019697,5.66822394,3461.1,3461.0,0.2892]
[1735875030496,5.66822394,3461.1,3460.9,4.55447579]
[1735875030796,5.66822394,3461.1,3460.9,4.84368579]
[1735875031101,5.66822394,3461.1,3461.0,0.2892]
[1735875035891,5.66822394,3461.1,3460.9,4.84368579]
[1735875036102,5.66822394,3461.1,3460.9,4.84367579]
[1735875036301,5.66822394,3461.1,3461.0,0.2892]
[1735875036702,5.66822394,3461.1,3460.9,4.55447579]
[1735875037202,5.66822394,3461.1,3461.0,0.2892]
[1735875043899,5.66822394,3461.1,3460.9,4.55447579]
[1735875043900,6.67056327,3461.1,3460.9,4.55447579]
[1735875044209,0.2892,3461.0,3460.9,4.55447579]
[1735875044403,41.0892,3461.0,3460.9,4.55447579]
[1735875044703,41.0892,3461.0,3460.8,4.55447579]
[1735875044907,1.00233933,3460.9,3460.8,4.55447579]
[1735875046108,1.29154933,3460.9,3460.8,4.55447579]
[1735875046503,1.29154933,3460.9,3460.6,0.28923]
[1735875046706,1.00233933,3460.7,3460.4,4.55447579]
[1735875046907,1.00233933,3460.7,3460.6,0.28924]
[1735875047110,1.00233933,3460.7,3460.5,0.28924]
[1735875047306,1.00233933,3460.7,3460.6,0.28924]
[1735875047507,4.53628544,3460.5,3460.4,0.28925]
[1735875050104,4.53628544,3460.6,3460.5,0.28925]
[1735875050504,4.53628544,3460.6,3460.4,0.28925]
[1735875050713,4.53628544,3460.6,3460.5,0.28925]
[1735875052115,1.00233933,3460.7,3460.5,0.28925]
[1735875052116,6.67269613,3460.7,3460.5,0.28925]
[1735875053010,1.00233933,3460.7,3460.5,0.28925]
[1735875053208,1.00233933,3460.7,3460.6,0.28924]
[1735875053408,1.00233933,3460.7,3460.5,0.28924]
[1735875054215,4.53139777,3460.6,3460.5,0.28924]
[1735875055814,4.53139777,3460.6,3460.5,1.29157933]
[1735875056219,4.53139777,3460.6,3460.5,4.49937933]
[1735875056914,4.53139777,3460.6,3460.5,4.21013933]
[1735875056915,3.3980398,3460.6,3460.5,4.21013933]
[1735875057117,3.3980398,3460.6,3460.5,4.49938933]
[1735875058512,4.53139777,3460.8,3460.6,0.28924]
[1735875058513,2.26547214,3460.7,3460.6,0.28924]
[1735875058714,2.26547214,3460.7,3460.6,1.29157933]
[1735875059816,3.3980398,3460.8,3460.7,0.28923]
[1735875061215,4.53139777,3460.9,3460.7,0.28923]
[1735875062007,5.5337371,3460.9,3460.7,0.28923]
[1735875062623,5.5337371,3460.9,3460.6,0.28923]
[1735875062811,1.00233933,3460.7,3460.6,0.28923]
[1735875063015,41.80233933,3460.7,3460.5,3.49704]
[1735875063521,1.00233933,3460.7,3460.5,3.49704]
[1735875063719,4.40088323,3460.7,3460.5,3.49704]
[1735875064115,40.8,3460.6,3460.5,3.2078]
[1735875064315,40.8,3460.6,3460.5,3.49705]
[1735875065414,40.8,3460.6,3460.2,4.55447579]
[1735875065716,1.00233933,3460.4,3460.2,4.55447579]
[1735875065915,1.00233933,3460.4,3460.2,4.84374579]
[1735875066521,2.26553068,3460.3,3460.2,0.28927]
[1735875067224,2.26553068,3460.3,3460.2,1.29160933]
[1735875070316,2.26553068,3460.3,3460.1,7.76227579]
[1735875070521,1.00233933,3460.2,3460.1,7.76227579]
[1735875071411,2.26553068,3460.3,3460.1,7.76227579]
[1735875071616,2.26553068,3460.3,3460.2,0.28927]
[1735875072020,2.26553068,3460.3,3460.1,7.76227579]
[1735875072220,5.6703568,3460.4,3460.2,0.28927]
[1735875073411,4.52880293,3460.4,3460.2,0.28927]
[1735875073812,1.00233933,3460.3,3460.2,0.28927]
[1735875075023,1.00233933,3460.3,3460.1,3.2078]
[1735875075226,0.28927,3460.2,3460.1,3.2078]
[1735875075926,5.82041226,3460.3,3460.1,3.2078]
[1735875076619,5.82041226,3460.3,3459.6,8.76461512]
[1735875076821,1.00233933,3460.1,3459.9,0.28929]
[1735875077015,1.00233933,3460.1,3460.0,0.28929]
[1735875077522,1.00233933,3460.1,3459.7,0.28931]
[1735875077523,1.29161933,3460.1,3459.7,0.28931]
[1735875077725,1.00233933,3459.8,3459.6,3.2078]
[1735875077925,1.29164933,3459.8,3459.6,3.2078]
[1735875078617,1.00233933,3459.8,3459.6,3.2078]
[1735875078823,1.00233933,3459.8,3459.3,4.55447579]
[1735875079032,1.00233933,3459.4,3459.3,4.55447579]
[1735875079521,41.80233933,3459.4,3459.3,4.55447579]
[1735875080226,44.06371021,3459.4,3459.2,3.2078]
[1735875080523,44.06371021,3459.4,3459.2,3.49715]
[1735875080715,44.06371021,3459.4,3459.2,3.2078]
[1735875081125,44.06371021,3459.4,3459.2,3.49715]
[1735875082023,3.26371021,3459.4,3459.3,0.28935]
[1735875082421,2.26137088,3459.4,3459.3,1.29168933]
[1735875082621,2.26137088,3459.5,3459.4,0.28934]
[1735875083820,2.26137088,3459.6,3459.4,0.28934]
[1735875084720,2.26137088,3459.6,3459.5,0.28933]
[1735875085429,2.26137088,3459.6,3459.5,1.29166933]
[1735875085820,0.43325352,3459.6,3459.5,7.41066933]
[1735875086123,2.59877187,3459.8,3459.7,0.28931]
[1735875086322,2.28577187,3459.8,3459.7,4.49944933]
[1735875086524,0.74724132,3459.8,3459.7,9.49944933]
[1735875086820,0.74724132,3460.3,3460.2,0.28927]
[1735875087022,0.74724132,3460.3,3460.2,2.41060933]
[1735875087526,1.00233933,3460.9,3460.7,0.28922]
[1735875088224,40.8,3460.8,3460.7,0.28922]
[1735875088519,40.8,3460.8,3460.2,5.32913933]
[1735875088724,1.00233933,3460.7,3460.6,0.28923]
[1735875090124,1.00233933,3460.7,3460.5,0.28924]
[1735875090424,1.00233933,3460.7,3460.2,5.32913933]
[1735875090425,40.8,3460.8,3460.6,0.28923]
[1735875091325,40.8,3460.8,3460.2,4.3268]
[1735875091526,40.8,3460.8,3460.7,0.28923]
[1735875094529,43.08249093,3460.8,3460.2,3.2078]
[1735875094730,0.28924,3460.6,3460.3,0.28926]
[1735875095127,0.28923,3460.7,3460.4,0.28925]
[1735875095429,43.37171093,3460.8,3460.4,0.28925]
[1735875097023,0.28923,3460.7,3460.4,0.28925]
[1735875097227,43.37171093,3460.8,3460.4,0.28925]
[1735875097422,40.8,3460.8,3460.6,0.28923]
[1735875098028,40.8,3460.8,3460.7,0.28923]
[1735875101225,7.72964621,3461.0,3460.9,0.28921]
[1735875101425,4.52184621,3461.0,3460.9,0.28921]
[1735875102737,40.8,3461.6,3460.8,2.28249093]
[1735875103036,41.08916,3461.6,3461.2,0.28918]
[1735875103931,40.8,3461.6,3461.3,0.28918]
[1735875104135,40.8,3461.6,3461.4,0.28917]
[1735875105145,40.8,3461.6,3461.5,0.28916]
[1735875106646,4.52184621,3461.9,3461.7,0.28914]
[1735875106939,4.52184621,3461.9,3461.8,0.28914]
[1735875108143,3.2078,3462.1,3462.0,0.28912]
[1735875108551,45.61093621,3462.4,3462.1,0.28911]
[1735875109442,41.08909,3462.4,3462.1,0.28911]
[1735875109741,41.08909,3462.4,3461.5,3.2078]
[1735875109942,41.08909,3462.4,3462.2,0.2891]
[1735875110649,41.08909,3462.4,3462.1,0.2891]
[1735875110947,41.08909,3462.4,3462.2,0.2891]
[1735875111350,0.28911,3462.2,3462.0,0.28912]
[1735875111547,3.2078,3462.1,3461.3,1.119]
[1735875111847,0.28912,3462.0,3461.8,0.28913]
[1735875112745,40.8,3461.9,3461.8,0.28913]
[1735875113350,40.8,3461.9,3461.3,1.119]
[1735875113550,40.8,3461.9,3461.7,0.28914]
[1735875113747,40.8,3461.9,3461.3,1.119]
[1735875114049,0.28915,3461.7,3461.4,0.28917]
[1735875114349,0.28915,3461.7,3461.3,0.28917]
[1735875115253,0.28914,3461.8,3461.3,0.28917]
[1735875116551,0.28914,3461.8,3461.1,5.49029093]
[1735875116852,0.28914,3461.8,3461.4,0.28917]
[1735875119153,44.0078,3461.9,3461.1,2.28249093]
[1735875119450,44.29693,3461.9,3461.4,0.28916]
[1735875120150,44.29693,3461.9,3461.1,2.28249093]
[1735875120351,44.29693,3461.9,3461.5,0.28916]
[1735875121154,44.29693,3461.9,3461.1,2.28249093]
[1735875121354,44.29693,3461.9,3461.5,0.28916]
[1735875121945,7.91323087,3463.3,3463.0,0.28904]
[1735875122150,18.4634324,3463.7,3463.6,0.28899]
[1735875122349,9.89865988,3463.8,3463.6,12.77278186]
[1735875122651,3.2078,3464.6,3464.5,0.28891]
[1735875122843,3.2078,3464.6,3464.5,1.40791]
[1735875123043,3.2078,3464.6,3464.5,3.69040093]
[1735875123453,8.9854,3464.6,3464.5,3.78071229]
[1735875123652,8.9854,3464.6,3464.5,3.92521047]
[1735875124253,8.9854,3464.6,3464.5,3.78071229]
[1735875124948,5.7776,3464.6,3464.5,3.69040093]
[1735875125148,5.7776,3464.6,3464.5,3.78071216]
[1735875127351,5.7776,3464.6,3464.5,1.20931123]
[1735875127555,5.7776,3464.6,3464.2,3.2078]
[1735875127754,5.7776,3464.3,3464.2,3.2078]
[1735875128054,46.5776,3464.3,3464.2,3.29811986]
[1735875128257,46.5776,3464.3,3464.2,0.09031986]
[1735875128658,46.5776,3464.3,3463.9,3.45149093]
[1735875128959,5.7776,3464.0,3463.9,3.74045093]
[1735875129955,1.44184623,3464.0,3463.9,3.74045093]
[1735875130456,40.8,3464.3,3463.9,3.45149093]
[1735875130661,42.24184623,3464.3,3464.2,5.77923093]
[1735875130958,1.44184623,3464.3,3464.2,5.77923093]
[1735875132957,1.44184623,3464.3,3464.2,2.57143093]
[1735875133157,1.44184623,3464.3,3464.2,5.77923093]
[1735875133461,1.44184623,3464.3,3464.2,3.49674]
[1735875135059,1.44184623,3464.3,3464.2,3.2078]
[1735875135463,1.44184623,3464.3,3464.2,3.49674]
[1735875136150,41.08888,3464.9,3464.2,3.2078]
[1735875136350,41.08888,3464.9,3464.3,0.28893]
[1735875137557,0.28889,3464.8,3464.3,0.28893]
[1735875138561,0.28889,3464.8,3464.2,3.2078]
[1735875138752,41.08888,3464.9,3464.3,0.28893]
[1735875139158,0.28889,3464.8,3464.3,0.28893]
[1735875141364,0.28889,3464.8,3464.4,0.28892]
[1735875141560,0.28889,3464.8,3464.3,0.28892]
[1735875142263,0.28889,3464.8,3464.4,0.28892]
[1735875142764,40.8,3464.9,3464.2,3.49673]
[1735875142765,0.2889,3464.7,3464.2,3.49673]
[1735875142963,40.8,3464.9,3464.3,0.28892]
[1735875143365,0.28889,3464.8,3464.3,0.28892]
[1735875143764,40.8,3464.9,3464.2,3.2078]
[1735875144163,40.8,3464.9,3464.3,0.28892]
[1735875144362,0.28889,3464.8,3464.3,0.28892]
[1735875144768,40.8,3464.9,3464.2,3.2078]
[1735875144967,0.28889,3464.8,3464.4,0.28892]
[1735875145168,0.2889,3464.7,3464.3,0.28892]
[1735875145357,0.2889,3464.7,3464.4,0.28892]
[1735875146064,0.2889,3464.7,3464.2,3.2078]
[1735875146269,0.2889,3464.7,3464.4,0.28891]
[1735875146864,0.2889,3464.7,3464.5,0.28891]
[1735875147668,0.2889,3464.7,3464.2,3.2078]
[1735875148063,0.2889,3464.7,3464.3,0.28893]
[1735875148271,40.8,3464.9,3464.2,3.2078]
[1735875148462,0.28889,3464.7,3464.5,0.28891]
[1735875149667,40.8,3464.9,3464.2,3.2078]
[1735875149863,0.2889,3464.7,3464.5,0.28891]
[1735875151063,40.8,3464.9,3464.6,0.2889]
[1735875151368,0.28889,3464.7,3464.5,0.28891]
[1735875153569,0.28889,3464.8,3464.5,0.28891]
[1735875153770,0.2889,3464.7,3464.5,0.28891]
[1735875154072,0.2889,3464.6,3464.5,0.28891]
[1735875156270,0.2889,3464.6,3464.4,0.28891]
[1735875157172,40.8,3464.5,3464.4,0.28891]
[1735875158772,40.8,3464.5,3464.2,3.2078]
[1735875158966,40.8,3464.5,3464.3,0.28893]
[1735875160473,41.08891,3464.5,3464.3,0.28893]
[1735875161876,41.08891,3464.5,3464.2,3.49674]
[1735875163176,41.08891,3464.5,3464.2,3.49673]
[1735875163373,40.8,3464.5,3463.9,4.50393298]
[1735875163576,2.57144093,3464.0,3463.9,4.50393298]
[1735875163777,5.77924093,3464.0,3463.9,1.21973298]
[1735875163978,0.28897,3463.8,3463.7,6.05689948]
[1735875164177,0.28899,3463.6,3463.5,9.00786597]
[1735875164478,46.29029093,3463.6,3462.2,6.21305093]
[1735875164680,0.28903,3463.1,3462.9,0.28904]
[1735875164971,46.29029093,3463.6,3462.9,0.28904]
[1735875165176,0.72249,3463.5,3462.7,0.28906]
[1735875165377,0.28905,3462.9,3462.7,0.28906]
[1735875166077,2.28249093,3463.3,3462.6,3.2078]
[1735875166274,0.28905,3462.9,3462.6,3.49687]
[1735875167183,2.28249093,3463.3,3462.6,3.49687]
[1735875167480,0.28904,3463.0,3462.6,3.49687]
[1735875168480,2.28249093,3463.3,3462.6,3.49687]
[1735875168782,0.28905,3462.9,3462.6,3.49687]
[1735875169482,0.28904,3463.0,3462.6,3.2078]
[1735875169782,0.28904,3463.0,3462.6,3.49686]
[1735875170083,0.28903,3463.1,3462.7,0.28905]
[1735875171881,45.1748,3463.6,3462.7,0.28905]
[1735875172180,0.28904,3463.0,3462.7,0.28905]
[1735875172583,44.0078,3463.6,3462.6,3.2078]
[1735875172774,0.28899,3463.5,3463.0,3.2078]
[1735875173979,3.2078,3463.6,3463.0,3.2078]
[1735875174182,3.2078,3463.6,3463.4,0.289]
[1735875174582,3.2078,3463.6,3463.1,2.28249093]
[1735875174878,3.2078,3463.6,3463.4,0.289]
[1735875175682,3.2078,3463.6,3463.1,2.28249093]
[1735875175683,3.2078,3463.6,3463.5,0.28899]
[1735875176486,0.28897,3463.8,3463.5,0.28899]
[1735875176689,0.28897,3463.9,3463.5,0.28899]
[1735875178089,40.8,3464.0,3463.4,3.2078]
[1735875178286,0.28896,3463.9,3463.5,0.28899]
[1735875179086,40.8,3464.0,3463.4,3.2078]
[1735875179285,0.28896,3463.9,3463.6,0.28898]
[1735875179491,0.28896,3463.9,3463.4,3.2078]
[1735875179986,0.28897,3463.8,3463.5,0.28899]
[1735875180182,0.00173767,3463.6,3463.5,0.28899]
[1735875182187,0.00173767,3463.6,3463.4,3.2078]
[1735875182188,0.29072767,3463.6,3463.4,3.2078]
[1735875182385,0.00173767,3463.6,3463.4,3.4968]
[1735875182784,0.00173767,3463.6,3463.5,0.28899]
[1735875183289,0.00173767,3463.6,3463.4,3.4968]
[1735875183489,0.00173767,3463.6,3463.4,3.2078]
[1735875183690,0.00173767,3463.6,3463.5,0.28899]
[1735875184488,0.00173767,3463.6,3463.4,3.2078]
[1735875184891,0.00173767,3463.6,3463.5,0.28899]
[1735875185191,0.00173767,3463.6,3463.4,3.2078]
[1735875185386,0.00173767,3463.6,3463.4,3.4968]
[1735875185790,0.00173767,3463.6,3463.5,0.28899]
[1735875187992,0.00173767,3463.6,3463.4,3.4968]
[1735875188893,0.00173767,3463.6,3463.5,0.28899]
[1735875190287,0.00173767,3463.6,3463.4,3.4968]
[1735875190489,0.00173767,3463.6,3463.5,0.28899]
[1735875192789,0.00173767,3463.6,3463.5,2.57148093]
[1735875192993,0.28893,3464.3,3464.0,0.28895]
[1735875193391,40.8,3464.3,3463.8,5.49029093]
[1735875193593,40.8,3464.3,3464.1,0.28894]
[1735875193795,40.8,3464.3,3463.8,5.49029093]
[1735875193994,40.8,3464.3,3464.2,0.28894]
[1735875195288,41.08893,3464.3,3464.0,0.28895]
[1735875195689,40.8,3464.3,3464.0,0.28895]
[1735875195885,40.8,3464.3,3463.8,5.49029093]
[1735875196091,3.4967,3464.7,3464.2,3.2078]
[1735875196296,3.4967,3464.7,3464.3,0.28892]
[1735875196688,40.8,3464.6,3464.2,3.2078]
[1735875196995,0.28893,3464.3,3463.9,0.28896]
[1735875197196,0.28892,3464.4,3464.0,0.28895]
[1735875197997,0.28893,3464.3,3463.9,0.28895]
[1735875198197,0.28893,3464.3,3463.8,2.28249093]
[1735875198497,0.28892,3464.4,3464.0,0.28895]
[1735875199100,40.8,3464.6,3464.0,0.28895]
[1735875199400,0.28893,3464.3,3463.8,2.28249093]
[1735875199695,0.28891,3464.5,3464.1,0.28894]
[1735875200397,41.08891,3464.6,3464.2,0.28893]
[1735875201193,40.8,3464.6,3464.1,0.28894]
[1735875201397,0.28893,3464.4,3464.0,0.28895]
[1735875201693,0.28893,3464.4,3464.1,0.28894]
[1735875202398,0.28893,3464.3,3463.9,0.28896]
[1735875202999,0.28893,3464.3,3464.0,0.28895]
[1735875203592,0.28893,3464.4,3464.0,0.28895]
[1735875203899,0.28893,3464.4,3463.8,2.28249093]
[1735875204097,0.28893,3464.4,3464.1,0.28894]
[1735875205500,0.28893,3464.4,3464.2,0.28894]
[1735875205796,0.28893,3464.4,3464.1,0.28894]
[1735875206192,0.28893,3464.4,3464.2,0.28894]
[1735875206594,40.8,3464.6,3463.8,2.28249093]
[1735875206794,0.28893,3464.3,3464.1,0.28894]
[1735875206995,0.28892,3464.4,3464.2,0.28894]
[1735875207595,0.28892,3464.4,3464.2,0.28893]
[1735875210805,40.8,3464.6,3463.8,2.28249093]
[1735875211005,0.28893,3464.4,3463.8,2.28249093]
[1735875211206,0.28893,3464.3,3464.1,0.28894]